fUSD/lending_fUSD_20241202
["ID","MTS","AMOUNT","RATE_DAILY","PERIOD"]
[343999979,1733173900508,-500.0,0.00025273,120]
[343999980,1733173900523,-500.0,0.00025273,120]
[343999981,1733173900533,-647.45,0.00025273,120]
[343999982,1733173900544,-500.0,0.00025273,120]
[343999983,1733173900554,-500.0,0.00025273,120]
[343999984,1733173900564,-500.0,0.00025273,120]
[343999985,1733173900575,-500.0,0.00025273,120]
[343999986,1733173900585,-693.61,0.00025273,120]
[343999987,1733173900595,-500.0,0.00025273,120]
[343999988,1733173900607,-500.0,0.00025273,120]
[343999989,1733173900617,-500.0,0.00025273,120]
[343999990,1733173900627,-500.0,0.00025273,120]
[343999991,1733173900638,-500.0,0.00025273,120]
[343999992,1733173900648,-500.0,0.00025273,120]
[343999993,1733173900658,-500.0,0.00025273,120]
[343999994,1733173900669,-1016.96,0.00025273,120]
[343999995,1733173900679,-500.0,0.00025273,120]
[343999996,1733173900690,-500.0,0.00025273,120]
[343999997,1733173900700,-539.07,0.00025273,120]
[343999998,1733173900711,-500.0,0.00025273,120]
[343999999,1733173900722,-500.0,0.00025273,120]
[344000000,1733173900732,-500.0,0.00025273,120]
[344000001,1733173900743,-500.0,0.00025273,120]
[344000002,1733173900753,-1438.91,0.00025273,120]
[344000003,1733173900763,-500.0,0.00025273,120]
[344000004,1733173900773,-500.0,0.00025273,120]
[344000005,1733173900783,-500.0,0.00025273,120]
[344000006,1733173900794,-500.0,0.00025273,120]
[344000007,1733173900804,-500.0,0.00025273,120]
[344000008,1733173900814,-948.94,0.00025273,120]
[344000009,1733173900825,-500.0,0.00025273,120]
[344000010,1733173900835,-906.05,0.00025273,120]
[344000011,1733173900845,-500.0,0.00025273,120]
[344000012,1733173900860,-1074.13,0.00025273,120]
[344000013,1733173900872,-500.0,0.00025273,120]
[344000014,1733173901129,-500.0,0.00025273,120]
[344000015,1733173901139,-1279.4,0.00025273,120]
[344000016,1733173901149,-1576.03,0.00025273,120]
[344000017,1733173901159,-518.38,0.00025273,120]
[344000018,1733173901169,-614.12,0.00025273,120]
[344000019,1733173901178,-500.0,0.00025273,120]
[344000020,1733173901188,-849.7,0.00025273,120]
[344000021,1733173901197,-500.0,0.00025273,120]
[344000022,1733173901207,-500.0,0.00025273,120]
[344000023,1733173901217,-1011.43,0.00025273,120]
[344000024,1733173901226,-1497.62,0.00025273,120]
[344000025,1733173901235,-500.0,0.00025273,120]
[344000026,1733173901245,-500.0,0.00025273,120]
[344000027,1733173901255,-500.0,0.00025273,120]
[344000028,1733173901264,-593.64,0.00025273,120]
[344000029,1733173901273,-204.90661573,0.00025273,120]
[344000030,1733173901283,-500.0,0.00025273,120]
[344000031,1733173901292,-500.0,0.00025273,120]
[344000032,1733173901301,-789.41,0.00025273,120]
[344000033,1733173901311,-2655.75,0.00025273,120]
[344000034,1733173901321,-1352.95,0.00025273,120]
[344000035,1733173901330,-1378.04,0.00025273,120]
[344000036,1733173901339,-233.52102463,0.00025273,120]
[344000037,1733173901349,-500.0,0.00025273,120]
[344000038,1733173901360,-564.36,0.00025273,120]
[344000039,1733173901370,-683.33,0.00025273,120]
[344000040,1733173901380,-649.44,0.00025273,120]
[344000041,1733173901390,-1064.04,0.00025273,120]
[344000042,1733173901400,-500.0,0.00025273,120]
[344000043,1733173901410,-500.0,0.00025273,120]
[344000044,1733173901419,-500.0,0.00025273,120]
[344000045,1733173901429,-500.0,0.00025273,120]
[344000046,1733173901438,-909.32,0.00025273,120]
[344000047,1733173901448,-500.0,0.00025273,120]
[344000048,1733173901458,-748.32,0.00025273,120]
[344000049,1733173901467,-500.0,0.00025273,120]
[344000050,1733173901476,-500.0,0.00025273,120]
[344000051,1733173901486,-500.0,0.00025273,30]
[344000052,1733173901495,-500.0,0.00025273,120]
[344000053,1733173901505,-500.0,0.00025273,120]
[344000054,1733173901515,-500.0,0.00025273,120]
[344000055,1733173901524,-635.71,0.00025273,120]
[344000056,1733173901534,-1695.84,0.00025273,120]
[344000057,1733173901543,-500.0,0.00025273,120]
[344000058,1733173901555,-631.82,0.00025273,120]
[344000059,1733173901565,-1108.62,0.00025273,120]
[344000060,1733173901574,-669.53,0.00025273,120]
[344000061,1733173901584,-309.21683694,0.00025273,120]
[344000062,1733173901593,-500.0,0.00025273,120]
[344000063,1733173901604,-638.71,0.00025273,120]
[344000064,1733173901613,-500.0,0.00025273,120]
[344000065,1733173901623,-512.20333674,0.00025273,120]
[344000066,1733173901633,-1016.52,0.00025273,120]
[344000067,1733173901643,-322.09402565,0.00025273,120]
[344000068,1733173901653,-500.0,0.00025273,120]
[344000069,1733173901663,-573.9,0.00025273,120]
[344000070,1733173901672,-521.97,0.00025273,120]
[344000071,1733173901681,-805.1,0.00025273,120]
[344000072,1733173901691,-500.0,0.00025273,120]
[344000073,1733173901700,-500.0,0.00025273,120]
[344000074,1733173901709,-500.0,0.00025273,120]
[344000075,1733173901719,-500.0,0.00025273,7]
[344000076,1733173901728,-500.0,0.00025273,120]
[344000077,1733173901738,-500.0,0.00025273,120]
[344000078,1733173901747,-500.0,0.00025273,120]
[344000079,1733173901756,-500.0,0.00025273,30]
[344000080,1733173901766,-500.0,0.00025273,120]
[344000081,1733173901775,-500.0,0.00025273,120]
[344000082,1733173901784,-1383.06,0.00025273,120]
[344000083,1733173901793,-1894.81,0.00025273,120]
[344000084,1733173901803,-715.04,0.00025273,120]
[344000085,1733173901811,-1268.97,0.00025273,120]
[344000086,1733173901821,-500.0,0.00025273,120]
[344000087,1733173901830,-688.75,0.00025273,120]
[344000088,1733173901839,-500.0,0.00025273,120]
[344000089,1733173901849,-500.0,0.00025273,120]
[344000090,1733173901861,-500.0,0.00025273,120]
[344000091,1733173901871,-500.0,0.00025273,120]
[344000092,1733173901882,-584.97,0.00025273,120]
[344000093,1733173901891,-500.0,0.00025273,120]
[344000094,1733173901901,-1841.28,0.00025273,120]
[344000095,1733173901910,-500.0,0.00025273,120]
[344000096,1733173901921,-500.0,0.00025273,120]
[344000097,1733173901929,-500.0,0.00025273,120]
[344000098,1733173901939,-769.98,0.00025273,120]
[344000099,1733173901949,-1438.5,0.00025273,120]
[344000100,1733173901958,-500.0,0.00025273,120]
[344000101,1733173901972,-1445.35,0.00025273,30]
[344000102,1733173901982,-1921.98,0.00025273,120]
[344000103,1733173901991,-916.37,0.00025273,120]
[344000104,1733173902000,-500.0,0.00025273,120]
[344000105,1733173902009,-465.47169668,0.00025273,120]
[344000106,1733173902018,-500.0,0.00025273,120]
[344000107,1733173902027,-500.0,0.00025273,120]
[344000108,1733173902037,-500.0,0.00025273,30]
[344000109,1733173902046,-500.0,0.00025273,120]
[344000110,1733173902055,-1760.2,0.00025273,120]
[344000111,1733173902065,-500.0,0.00025273,120]
[344000112,1733173902074,-500.0,0.00025273,120]
[344000113,1733173902083,-1215.2,0.00025273,120]
[344000114,1733173902093,-500.0,0.00025273,120]
[344000115,1733173902103,-500.0,0.00025273,120]
[344000116,1733173902113,-500.0,0.00025273,120]
[344000117,1733173902123,-500.0,0.00025273,120]
[344000118,1733173902132,-500.0,0.00025273,120]
[344000119,1733173902141,-500.0,0.00025273,120]
[344000120,1733173902150,-766.6,0.00025273,120]
[344000121,1733173902160,-1248.1,0.00025273,120]
[344000122,1733173902169,-500.0,0.00025273,120]
[344000123,1733173902178,-500.0,0.00025273,120]
[344000124,1733173902187,-638.10737347,0.00025273,120]
[344000125,1733173902196,-802.31,0.00025273,120]
[344000126,1733173902205,-846.79,0.00025273,120]
[344000127,1733173902214,-897.73,0.00025273,120]
[344000128,1733173902223,-1118.72,0.00025273,120]
[344000129,1733173902232,-517.4,0.00025273,120]
[344000130,1733173902241,-997.33,0.00025273,120]
[344000131,1733173902250,-500.0,0.00025273,120]
[344000132,1733173902259,-500.0,0.00025273,120]
[344000133,1733173902268,-503.61,0.00025273,120]
[344000134,1733173902278,-500.0,0.00025273,120]
[344000135,1733173902287,-462.27511766,0.00025273,120]
[344000136,1733173902296,-521.12,0.00025273,120]
[344000137,1733173902305,-752.16,0.00025273,120]
[344000138,1733173902314,-500.0,0.00025273,120]
[344000139,1733173902324,-1441.76,0.00025273,120]
[344000140,1733173902333,-500.0,0.00025273,120]
[344000141,1733173902343,-500.0,0.00025273,120]
[344000142,1733173902354,-500.0,0.00025273,120]
[344000143,1733173902363,-604.3,0.00025273,120]
[344000144,1733173902373,-500.0,0.00025273,120]
[344000145,1733173902382,-500.0,0.00025273,120]
[344000146,1733173902391,-500.0,0.00025273,120]
[344000147,1733173902400,-500.0,0.00025273,120]
[344000148,1733173902410,-500.0,0.00025273,120]
[344000149,1733173902419,-1158.69,0.00025273,120]
[344000150,1733173902428,-830.84,0.00025273,120]
[344000151,1733173902437,-500.0,0.00025273,120]
[344000152,1733173902446,-500.0,0.00025273,120]
[344000153,1733173902455,-787.02,0.00025273,120]
[344000154,1733173902465,-500.0,0.00025273,120]
[344000155,1733173902474,-507.20690789,0.00025273,120]
[344000156,1733173902483,-678.15,0.00025273,120]
[344000157,1733173902493,-500.0,0.00025273,120]
[344000158,1733173902502,-500.0,0.00025273,120]
[344000159,1733173902511,-500.0,0.00025273,120]
[344000160,1733173902521,-579.57,0.00025273,120]
[344000161,1733173902531,-500.0,0.00025273,120]
[344000162,1733173902541,-693.81,0.00025273,120]
[344000163,1733173902551,-500.0,0.00025273,120]
[344000164,1733173902560,-767.25,0.00025273,120]
[344000165,1733173902570,-500.0,0.00025273,120]
[344000166,1733173902579,-500.0,0.00025273,120]
[344000167,1733173902588,-500.0,0.00025273,120]
[344000168,1733173902598,-500.0,0.00025273,120]
[344000169,1733173902610,-2348.9,0.00025273,120]
[344000170,1733173902619,-500.0,0.00025273,120]
[344000171,1733173902628,-500.0,0.00025273,120]
[344000172,1733173902637,-552.18819367,0.00025273,120]
[344000173,1733173902647,-500.0,0.00025273,120]
[344000174,1733173902656,-1617.44,0.00025273,120]
[344000175,1733173902666,-1282.12,0.00025273,120]
[344000176,1733173902675,-500.0,0.00025273,120]
[344000177,1733173902685,-500.0,0.00025273,120]
[344000178,1733173902694,-1078.12,0.00025273,120]
[344000179,1733173902704,-462.13072386,0.00025273,120]
[344000180,1733173902724,-940.92,0.00025273,120]
[344000181,1733173902740,-150.0,0.00025273,120]
[344000182,1733173902758,-500.0,0.00025273,120]
[344000183,1733173902777,-500.0,0.00025273,120]
[344000184,1733173902792,-500.0,0.00025273,120]
[344000185,1733173902814,-500.0,0.00025273,30]
[344000186,1733173902833,-500.0,0.00025273,120]
[344000187,1733173902856,-500.0,0.00025273,120]
[344000188,1733173902874,-691.66,0.00025273,120]
[344000189,1733173902893,-500.0,0.00025273,60]
[344000190,1733173902910,-500.0,0.00025273,120]
[344000191,1733173902923,-1571.16,0.00025273,120]
[344000192,1733173902943,-1223.14,0.00025273,120]
[344000193,1733173902955,-500.0,0.00025273,120]
[344000194,1733173902974,-500.0,0.00025273,120]
[344000195,1733173902988,-500.0,0.00025273,120]
[344000196,1733173903003,-5000.0,0.00025273,120]
[344000197,1733173903018,-500.0,0.00025273,120]
[344000198,1733173903034,-500.0,0.00025273,120]
[344000199,1733173903050,-1350.61,0.00025273,120]
[344000200,1733173903065,-1568.88,0.00025273,120]
[344000201,1733173903079,-2663.86,0.00025273,120]
[344000202,1733173903095,-621.59,0.00025273,120]
[344000203,1733173903112,-500.0,0.00025273,120]
[344000204,1733173903128,-636.28,0.00025273,120]
[344000205,1733173903142,-500.0,0.00025273,120]
[344000206,1733173903157,-693.25,0.00025273,120]
[344000207,1733173903173,-500.0,0.00025273,120]
[344000208,1733173903187,-500.0,0.00025273,120]
[344000209,1733173903203,-500.0,0.00025273,120]
[344000210,1733173903219,-552.17824735,0.00025273,120]
[344000211,1733173903235,-868.6,0.00025273,120]
[344000212,1733173903252,-1577.1,0.00025273,120]
[344000213,1733173903268,-500.0,0.00025273,120]
[344000214,1733173903283,-1166.05,0.00025273,120]
[344000215,1733173903299,-566.77,0.00025273,120]
[344000216,1733173903315,-1978.5,0.00025273,120]
[344000217,1733173903330,-500.0,0.00025273,120]
[344000218,1733173903345,-1500.0,0.00025273,120]
[344000219,1733173903361,-500.0,0.00025273,120]
[344000220,1733173903376,-500.0,0.00025273,120]
[344000221,1733173903400,-500.0,0.00025273,120]
[344000222,1733173903415,-1747.08,0.00025273,120]
[344000223,1733173903430,-500.0,0.00025273,120]
[344000224,1733173903446,-536.0,0.00025273,120]
[344000225,1733173903461,-1118.31,0.00025273,120]
[344000226,1733173903476,-500.0,0.00025273,120]
[344000227,1733173903492,-500.0,0.00025273,120]
[344000228,1733173903508,-500.0,0.00025273,120]
[344000229,1733173903525,-570.74,0.00025273,120]
[344000230,1733173903540,-1482.82,0.00025273,120]
[344000231,1733173903557,-500.0,0.00025273,120]
[344000232,1733173903573,-500.0,0.00025273,120]
[344000233,1733173903589,-967.04,0.00025273,120]
[344000234,1733173903607,-750.49,0.00025273,120]
[344000235,1733173903624,-1001.25,0.00025273,120]
[344000236,1733173903641,-500.0,0.00025273,120]
[344000237,1733173903657,-1232.81,0.00025273,120]
[344000238,1733173903673,-500.0,0.00025273,120]
[344000239,1733173903689,-500.0,0.00025273,120]
[344000240,1733173903706,-1574.41,0.00025273,120]
[344000241,1733173903722,-500.0,0.00025273,120]
[344000242,1733173903738,-958.2,0.00025273,120]
[344000243,1733173903753,-500.0,0.00025273,120]
[344000244,1733173903769,-500.0,0.00025273,120]
[344000245,1733173903786,-500.0,0.00025273,120]
[344000246,1733173903805,-783.5,0.00025273,120]
[344000247,1733173903821,-500.0,0.00025273,120]
[344000248,1733173903837,-500.0,0.00025273,120]
[344000249,1733173903855,-500.0,0.00025273,120]
[344000250,1733173903872,-500.0,0.00025273,120]
[344000251,1733173903888,-500.0,0.00025273,120]
[344000252,1733173903904,-500.0,0.00025273,120]
[344000253,1733173903920,-500.0,0.00025273,120]
[344000254,1733173903937,-500.0,0.00025273,120]
[344000255,1733173903953,-554.09422654,0.00025273,120]
[344000256,1733173903969,-552.63,0.00025273,120]
[344000257,1733173903986,-610.35,0.00025273,120]
[344000258,1733173904011,-500.0,0.00025273,120]
[344000259,1733173904027,-500.0,0.00025273,120]
[344000260,1733173904044,-500.0,0.00025273,120]
[344000261,1733173904060,-509.67239961,0.00025273,120]
[344000262,1733173904075,-500.0,0.00025273,120]
[344000263,1733173904091,-500.0,0.00025273,120]
[344000264,1733173904108,-500.0,0.00025273,120]
[344000265,1733173904126,-841.84,0.00025273,120]
[344000266,1733173904141,-500.0,0.00025273,120]
[344000267,1733173904157,-500.0,0.00025273,120]
[344000268,1733173904172,-500.0,0.00025273,120]
[344000269,1733173904189,-500.0,0.00025273,120]
[344000270,1733173904205,-911.1,0.00025273,120]
[344000271,1733173904221,-500.0,0.00025273,120]
[344000272,1733173904238,-513.9,0.00025273,120]
[344000273,1733173904256,-815.5,0.00025273,120]
[344000274,1733173904277,-500.0,0.00025273,120]
[344000275,1733173904294,-500.0,0.00025273,120]
[344000276,1733173904311,-1276.41,0.00025273,120]
[344000277,1733173904327,-1476.76,0.00025273,120]
[344000278,1733173904342,-1004.13,0.00025273,120]
[344000279,1733173904360,-500.0,0.00025273,120]
[344000280,1733173904374,-500.0,0.00025273,120]
[344000281,1733173904389,-525.61,0.00025273,120]
[344000282,1733173904406,-500.0,0.00025273,7]
[344000283,1733173904423,-640.85,0.00025273,120]
[344000284,1733173904439,-500.0,0.00025273,120]
[344000285,1733173904455,-501.12,0.00025273,120]
[344000286,1733173904470,-500.0,0.00025273,120]
[344000287,1733173904486,-542.04,0.00025273,120]
[344000288,1733173904501,-500.0,0.00025273,120]
[344000289,1733173904518,-903.62,0.00025273,120]
[344000290,1733173904535,-2509.7,0.00025273,120]
[344000291,1733173904551,-500.0,0.00025273,120]
[344000292,1733173904566,-500.0,0.00025273,120]
[344000293,1733173904581,-500.0,0.00025273,120]
[344000294,1733173904596,-500.0,0.00025273,120]
[344000295,1733173904613,-500.0,0.00025273,120]
[344000296,1733173904627,-1173.76,0.00025273,120]
[344000297,1733173904643,-795.58,0.00025273,120]
[344000298,1733173904658,-1377.31,0.00025273,120]
[344000299,1733173904673,-652.33,0.00025273,120]
[344000300,1733173904689,-428.69273601,0.00025273,2]
[344000301,1733173904705,-500.0,0.00025273,120]
[344000302,1733173904721,-500.0,0.00025273,120]
[344000303,1733173904736,-885.1,0.00025273,2]
[344000304,1733173904751,-500.0,0.00025273,120]
[344000305,1733173904766,-1075.95,0.00025273,120]
[344000306,1733173904783,-500.0,0.00025273,120]
[344000307,1733173904799,-500.0,0.00025273,120]
[344000308,1733173904814,-1729.83,0.00025273,120]
[344000309,1733173904829,-666.69,0.00025273,120]
[344000310,1733173904844,-1047.59,0.00025273,120]
[344000311,1733173904862,-781.9,0.00025273,120]
[344000312,1733173904883,-500.0,0.00025273,120]
[344000313,1733173904899,-681.91,0.00025273,120]
[344000314,1733173904915,-715.49,0.00025273,120]
[344000315,1733173904931,-500.0,0.00025273,120]
[344000316,1733173904947,-500.0,0.00025273,120]
[344000317,1733173904963,-500.0,0.00025273,120]
[344000318,1733173904977,-500.0,0.00025273,120]
[344000319,1733173904994,-500.0,0.00025273,120]
[344000320,1733173905011,-500.0,0.00025273,120]
[344000321,1733173905027,-500.0,0.00025273,2]
[344000322,1733173905043,-500.0,0.00025273,120]
[344000323,1733173905058,-1658.11,0.00025273,120]
[344000324,1733173905070,-554.41236469,0.00025273,120]
[344000325,1733173905079,-500.0,0.00025273,120]
[344000326,1733173905089,-500.0,0.00025273,90]
[344000327,1733173905100,-500.0,0.00025273,120]
[344000328,1733173905113,-500.0,0.00025273,120]
[344000329,1733173905123,-500.0,0.00025273,120]
[344000330,1733173905132,-500.0,0.00025273,120]
[344000331,1733173905142,-500.0,0.00025273,120]
[344000332,1733173905152,-500.0,0.00025273,120]
[344000333,1733173905163,-1024.52,0.00025273,120]
[344000334,1733173905173,-500.0,0.00025273,120]
[344000335,1733173905183,-2072.56,0.00025273,120]
[344000336,1733173905192,-1959.08,0.00025273,120]
[344000337,1733173905202,-500.0,0.00025273,120]
[344000338,1733173905212,-979.74,0.00025273,120]
[344000339,1733173905221,-500.0,0.00025273,120]
[344000340,1733173905231,-660.29,0.00025273,120]
[344000341,1733173905240,-500.0,0.00025273,120]
[344000342,1733173905250,-1650.66,0.00025273,120]
[344000343,1733173905259,-5045.62,0.00025273,120]
[344000344,1733173905269,-500.0,0.00025273,120]
[344000345,1733173905279,-500.0,0.00025273,60]
[344000346,1733173905791,-897.7,0.00025273,120]
[344000347,1733173905814,-500.0,0.00025273,120]
[344000348,1733173905839,-340.52800166,0.00025273,120]
[344000349,1733173905868,-500.0,0.00025273,120]
[344000350,1733173905889,-500.0,0.00025273,120]
[344000351,1733173905901,-505.49940487,0.00025273,120]
[344000352,1733173905911,-2101.0,0.00025273,120]
[344000353,1733173905920,-500.0,0.00025273,120]
[344000354,1733173905930,-500.0,0.00025273,120]
[344000355,1733173905941,-1756.07,0.00025273,120]
[344000356,1733173905950,-1109.12,0.00025273,120]
[344000357,1733173905959,-1685.71,0.00025273,120]
[344000358,1733173905968,-571.56,0.00025273,120]
[344000359,1733173905977,-500.0,0.00025273,120]
[344000360,1733173905986,-503.6,0.00025273,120]
[344000361,1733173905996,-500.0,0.00025273,120]
[344000362,1733173906005,-2455.85,0.00025273,120]
[344000363,1733173906015,-767.43,0.00025273,120]
[344000364,1733173906024,-3414.81,0.00025273,120]
[344000365,1733173906033,-500.0,0.00025273,120]
[344000366,1733173906042,-857.49,0.00025273,120]
[344000367,1733173906051,-500.0,0.00025273,120]
[344000368,1733173906060,-500.0,0.00025273,120]
[344000369,1733173906069,-511.83,0.00025273,120]
[344000370,1733173906078,-921.9,0.00025273,120]
[344000371,1733173906087,-500.0,0.00025273,120]
[344000372,1733173906097,-790.55,0.00025273,120]
[344000373,1733173906107,-2418.81,0.00025273,120]
[344000374,1733173906116,-500.0,0.00025273,120]
[344000375,1733173906125,-614.05,0.00025273,120]
[344000376,1733173906134,-2246.95,0.00025273,120]
[344000377,1733173906143,-500.0,0.00025273,120]
[344000378,1733173906153,-1254.54,0.00025273,120]
[344000379,1733173906162,-500.0,0.00025273,120]
[344000380,1733173906172,-500.0,0.00025273,120]
[344000381,1733173906181,-500.0,0.00025273,120]
[344000382,1733173906190,-500.0,0.00025273,120]
[344000383,1733173906199,-500.0,0.00025273,120]
[344000384,1733173906208,-500.0,0.00025273,120]
[344000385,1733173906217,-500.0,0.00025273,120]
[344000386,1733173906227,-500.0,0.00025273,120]
[344000387,1733173906236,-500.0,0.00025273,120]
[344000388,1733173906245,-500.0,0.00025273,120]
[344000389,1733173906254,-500.0,0.00025273,120]
[344000390,1733173906264,-500.0,0.00025273,120]
[344000391,1733173906273,-500.0,0.00025273,120]
[344000392,1733173906282,-1323.8,0.00025273,120]
[344000393,1733173906291,-500.0,0.00025273,120]
[344000394,1733173906300,-500.0,0.00025273,120]
[344000395,1733173906309,-500.0,0.00025273,120]
[344000396,1733173906318,-500.0,0.00025273,120]
[344000397,1733173906328,-500.0,0.00025273,120]
[344000398,1733173906337,-500.0,0.00025273,120]
[344000399,1733173906346,-500.0,0.00025273,120]
[344000400,1733173906357,-404.32376088,0.00025273,120]
[344000401,1733173906367,-500.0,0.00025273,120]
[344000402,1733173906376,-620.45,0.00025273,120]
[344000403,1733173906385,-500.0,0.00025273,120]
[344000404,1733173906395,-500.0,0.00025273,120]
[344000405,1733173906404,-500.0,0.00025273,120]
[344000406,1733173906414,-500.0,0.00025273,120]
[344000407,1733173906423,-500.0,0.00025273,120]
[344000408,1733173906432,-500.0,0.00025273,120]
[344000409,1733173906441,-500.0,0.00025273,120]
[344000410,1733173906450,-513.42,0.00025273,120]
[344000411,1733173906460,-500.0,0.00025273,120]
[344000412,1733173906470,-248.23,0.00025273,120]
[344000413,1733173906479,-500.0,0.00025273,120]
[344000414,1733173906489,-542.35102147,0.00025273,120]
[344000415,1733173906498,-500.0,0.00025273,120]
[344000416,1733173906508,-500.0,0.00025273,120]
[344000417,1733173906519,-500.0,0.00025273,120]
[344000418,1733173906529,-500.0,0.00025273,120]
[344000419,1733173906540,-500.0,0.00025273,120]
[344000420,1733173906551,-500.0,0.00025273,120]
[344000421,1733173906562,-500.0,0.00025273,120]
[344000422,1733173906574,-500.0,0.00025273,120]
[344000423,1733173906585,-500.0,0.00025273,120]
[344000424,1733173906596,-500.0,0.00025273,120]
[344000425,1733173906609,-2292.53,0.00025273,120]
[344000426,1733173906619,-500.0,0.00025273,120]
[344000427,1733173906630,-500.0,0.00025273,120]
[344000428,1733173906642,-500.0,0.00025273,120]
[344000429,1733173906653,-500.0,0.00025273,120]
[344000430,1733173906664,-500.0,0.00025273,120]
[344000431,1733173906674,-500.0,0.00025273,120]
[344000432,1733173906685,-500.0,0.00025273,120]
[344000433,1733173906695,-500.0,0.00025273,120]
[344000434,1733173906705,-500.0,0.00025273,120]
[344000435,1733173906715,-585.33,0.00025273,120]
[344000436,1733173906724,-521.69230949,0.00025273,120]
[344000437,1733173906734,-500.0,0.00025273,120]
[344000438,1733173906744,-500.0,0.00025273,120]
[344000439,1733173906754,-500.0,0.00025273,120]
[344000440,1733173906763,-235.72,0.00025273,120]
[344000441,1733173906774,-500.0,0.00025273,120]
[344000442,1733173906784,-500.0,0.00025273,120]
[344000443,1733173906794,-341.5,0.00025273,120]
[344000444,1733173906803,-500.0,0.00025273,120]
[344000445,1733173906812,-500.0,0.00025273,120]
[344000446,1733173906822,-1245.89,0.00025273,120]
[344000447,1733173906832,-737.02,0.00025273,120]
[344000448,1733173906842,-500.0,0.00025273,120]
[344000449,1733173906851,-684.34,0.00025273,60]
[344000450,1733173906863,-500.0,0.00025273,120]
[344000451,1733173906878,-604.42,0.00025273,120]
[344000452,1733173906888,-500.0,0.00025273,120]
[344000453,1733173906898,-500.0,0.00025273,30]
[344000454,1733173906907,-510.59224117,0.00025273,120]
[344000455,1733173906917,-777.5,0.00025273,120]
[344000456,1733173906927,-500.0,0.00025273,120]
[344000457,1733173906936,-828.94,0.00025273,120]
[344000458,1733173906946,-500.0,0.00025273,120]
[344000459,1733173906956,-625.80504682,0.00025273,120]
[344000460,1733173906965,-2016.79,0.00025273,120]
[344000461,1733173906975,-1832.25,0.00025273,120]
[344000462,1733173906984,-500.0,0.00025273,120]
[344000463,1733173906993,-866.0,0.00025273,120]
[344000464,1733173907003,-500.0,0.00025273,120]
[344000465,1733173907012,-500.0,0.00025273,120]
[344000466,1733173907022,-500.0,0.00025273,120]
[344000467,1733173907031,-500.0,0.00025273,120]
[344000468,1733173907041,-2674.28,0.00025273,120]
[344000469,1733173907050,-2664.77,0.00025273,120]
[344000470,1733173907059,-1112.26,0.00025273,120]
[344000471,1733173907068,-2232.19,0.00025273,120]
[344000472,1733173907078,-742.5,0.00025273,120]
[344000473,1733173907087,-544.91499446,0.00025273,120]
[344000474,1733173907097,-1190.43,0.00025273,120]
[344000475,1733173907109,-500.0,0.00025273,120]
[344000476,1733173907119,-500.0,0.00025273,120]
[344000477,1733173907128,-500.0,0.00025273,120]
[344000478,1733173907139,-500.0,0.00025273,120]